bitfinex-derivatives/quotes_ETHF0:USTF0_20230701
["timestamp","ask_amount","ask_price","bid_price","bid_amount"]
[1688171743472,0.00774054,1938.0,1937.9,3.66266]
[1688171744089,0.00774054,1938.0,1937.9,4.04730099]
[1688171744284,0.27164054,1938.2,1937.9,4.04730099]
[1688171744485,4.9185185,1938.9,1938.5,0.103]
[1688171744486,0.92866,1938.8,1938.5,0.103]
[1688171744687,0.92866,1938.8,1938.7,3.246]
[1688171744888,3.98168,1938.9,1938.7,3.55553]
[1688171745198,3.98168,1938.9,1938.8,3.246]
[1688171745397,3.80401635,1938.9,1938.8,3.55552]
[1688171745689,3.80401635,1938.9,1938.8,3.7242831]
[1688171745893,3.80401635,1938.9,1938.8,5.5292831]
[1688171746284,3.5173,1938.9,1938.8,5.5292831]
[1688171746986,3.80401635,1938.9,1938.8,5.5292831]
[1688171747288,3.2078,1938.9,1938.8,5.5292831]
[1688171747689,0.41528792,1939.0,1938.9,0.103]
[1688171747889,0.00773654,1939.0,1938.9,5.4405]
[1688171748092,0.00773654,1939.0,1938.9,5.58526003]
[1688171753495,0.77372,1939.3,1938.9,5.58526003]
[1688171753496,6.92221075,1939.5,1938.9,5.58526003]
[1688171753701,5.99285,1939.5,1939.4,5.057]
[1688171754005,6.27956635,1939.5,1939.4,5.36643]
[1688171754203,5.99285,1939.5,1939.4,5.36643]
[1688171754500,6.27956635,1939.5,1939.4,5.36643]
[1688171754696,6.69682354,1939.5,1939.4,5.36643]
[1688171756302,9.90462354,1939.5,1939.4,5.36643]
[1688171756498,9.48736635,1939.5,1939.4,5.36643]
[1688171759206,9.20065,1939.5,1939.4,5.36643]
[1688171759904,9.48736635,1939.5,1939.4,5.36643]
[1688171762109,9.48736635,1939.5,1939.4,5.36743]
[1688171762404,9.20065,1939.5,1939.4,5.36743]
[1688171763707,5.99285,1939.5,1939.4,5.36743]
[1688171764218,6.27956635,1939.5,1939.4,5.36743]
[1688171764699,5.99285,1939.5,1939.4,5.36743]
[1688171765103,6.27956635,1939.5,1939.4,5.36743]
[1688171768111,9.48736635,1939.5,1939.4,5.36743]
[1688171769815,5.99285,1939.5,1939.4,5.36743]
[1688171771015,6.27956635,1939.5,1939.4,5.36743]
[1688171772109,6.27956635,1939.5,1939.4,5.36043]
[1688171774515,6.27956635,1939.5,1939.3,5.8316]
[1688171774712,0.56748412,1939.4,1939.3,5.8316]
[1688171774913,0.87691412,1939.4,1939.3,5.8316]
[1688171779925,0.87691412,1939.4,1939.3,5.058]
[1688171780427,0.87691412,1939.4,1939.3,5.36745]
[1688171782227,0.87691412,1939.4,1939.3,0.30945]
[1688171789238,1.29125541,1939.4,1939.3,0.30945]
[1688171792039,1.29125541,1939.4,1939.3,5.36745]
[1688171798053,1.29125541,1939.4,1939.1,10.88868]
[1688171798242,7.75475686,1939.2,1939.1,10.88868]
[1688171799344,12.99355686,1939.2,1939.1,10.88868]
[1688171799737,13.92235074,1939.2,1939.1,10.88868]
[1688171799934,6.47705388,1939.2,1939.1,10.88868]
[1688171800241,5.54826,1939.2,1939.1,10.88868]
[1688171801549,5.54826,1939.2,1939.1,10.9835768]
[1688171805933,6.11574412,1939.2,1939.1,0.0948968]
[1688171806132,0.28671635,1939.1,1938.8,0.00773615]
[1688171806340,3.2078,1938.9,1938.8,5.03873615]
[1688171806540,3.51731,1938.9,1938.8,5.03873615]
[1688171806747,3.80402635,1938.9,1938.8,5.03873615]
[1688171806938,8.78332635,1938.9,1938.8,5.03873615]
[1688171809040,8.78332635,1938.9,1938.8,5.34825615]
[1688171810056,8.78332635,1938.9,1938.8,5.03873615]
[1688171810358,8.78332635,1938.9,1938.8,0.00773615]
[1688171810861,8.78332635,1938.9,1938.8,3.22973615]
[1688171812045,12.03532635,1938.9,1938.8,0.00773615]
[1688171813755,12.03532635,1938.9,1938.8,0.12644043]
[1688171814653,12.13732635,1938.9,1938.8,1e-08]
[1688171814854,13.06612023,1938.9,1938.8,1e-08]
[1688171815054,13.06612023,1938.9,1938.4,8.79549]
[1688171815359,3.2078,1938.6,1938.4,8.4859]
[1688171815562,0.30957,1938.5,1938.4,8.4859]
[1688171815861,0.59628635,1938.5,1938.4,8.4859]
[1688171816062,5.33848635,1938.5,1938.4,8.79549]
[1688171816356,5.33848635,1938.5,1938.4,5.54949]
[1688171817956,0.30957,1938.5,1938.4,5.54949]
[1688171818255,0.30957,1938.5,1938.4,8.79549]
[1688171819359,0.59628635,1938.5,1938.4,8.79549]
[1688171820256,0.30957,1938.5,1938.4,8.79549]
[1688171820757,1.70273388,1938.7,1938.4,8.89849]
[1688171820956,0.77394,1938.7,1938.6,0.30956]
[1688171821353,1.06065635,1938.7,1938.6,0.30956]
[1688171822066,1.06065635,1938.7,1938.6,3.53356]
[1688171822266,1.18210422,1938.7,1938.6,3.53356]
[1688171822562,1.18210422,1938.7,1938.6,3.67011538]
[1688171822955,1.46882057,1938.7,1938.6,3.67011538]
[1688171825257,1.46882057,1938.7,1938.6,0.44611538]
[1688171825562,1.46882057,1938.7,1938.6,3.69811538]
[1688171831668,1.18210422,1938.7,1938.6,3.69811538]
[1688171834170,0.40816422,1938.7,1938.6,3.80111538]
[1688171834368,0.9286,1938.9,1938.6,3.80111538]
[1688171834674,0.9286,1938.9,1938.8,3.252]
[1688171834973,0.9286,1938.9,1938.8,3.64971722]
[1688171836375,8.38131,1939.0,1938.8,3.64971722]
[1688171836570,0.41122423,1938.9,1938.8,3.64971722]
[1688171836771,8.38131,1939.0,1938.8,3.64971722]
[1688171837777,1.23829388,1939.1,1938.9,3.222]
[1688171837983,5.2185,1939.2,1939.0,3.53149]
[1688171838173,5.2185,1939.2,1939.1,3.246]
[1688171838479,5.6297062,1939.2,1939.1,3.55548]
[1688171838879,5.9391662,1939.2,1939.1,3.55548]
[1688171839274,6.22588255,1939.2,1939.1,3.55548]
[1688171840084,5.9391662,1939.2,1939.1,3.55548]
[1688171844993,6.22588255,1939.2,1939.1,3.55548]
[1688171847191,6.22588255,1939.2,1939.1,3.246]
[1688171847390,9.44688255,1939.2,1938.8,3.65330844]
[1688171847691,9.44688255,1939.2,1938.8,3.246]
[1688171847692,0.30949,1939.0,1938.8,3.246]
[1688171847892,5.32202635,1938.9,1938.8,3.246]
[1688171848087,5.88951047,1938.9,1938.8,3.246]
[1688171848281,12.45131047,1938.9,1938.4,3.252]
[1688171848486,0.30956,1938.6,1938.4,3.56159]
[1688171849093,0.87704412,1938.6,1938.4,3.56159]
[1688171849290,5.60284412,1938.6,1938.5,0.16911983]
[1688171849793,5.88956047,1938.6,1938.5,0.16911983]
[1688171853095,5.88956047,1938.6,1938.5,0.47868983]
[1688171855497,5.88956047,1938.6,1938.5,0.16911983]
[1688171860901,5.88956047,1938.6,1938.5,0.47868983]
[1688171862106,5.88956047,1938.6,1938.5,0.16911983]
[1688171862499,9.14156047,1938.6,1938.5,0.16911983]
[1688171862695,9.14156047,1938.6,1938.3,0.00773814]
[1688171862901,6.4598,1938.5,1938.4,0.17823984]
[1688171863202,6.76937,1938.5,1938.4,0.17823984]
[1688171866805,0.92879388,1938.7,1938.6,0.103]
[1688171867002,0.77377,1939.1,1938.8,3.252]
[1688171867196,0.77378,1939.0,1938.8,3.56151]
[1688171867401,0.77378,1939.0,1938.9,3.222]
[1688171867601,0.77378,1939.0,1938.9,3.60415306]
[1688171867602,1.06049635,1939.0,1938.9,3.60415306]
[1688171868512,1.06049635,1939.0,1938.9,3.29464306]
[1688171868705,1.06049635,1939.0,1938.9,0.07264306]
[1688171869105,1.06049635,1939.0,1938.8,3.56152]
[1688171870405,3.2078,1938.9,1938.8,3.56152]
[1688171870601,3.51731,1938.9,1938.8,3.56152]
[1688171870814,4.08479412,1938.9,1938.8,3.56152]
[1688171872011,0.77378,1939.0,1938.8,3.53152]
[1688171872202,3.98158,1939.1,1939.0,0.30949]
[1688171872203,0.77378,1939.1,1939.0,0.30949]
[1688171872402,0.77378,1939.1,1939.0,3.56149]
[1688171873204,5.16832465,1939.2,1939.0,3.56149]
[1688171873509,5.16832465,1939.2,1939.1,3.53148]
[1688171873510,0.40692465,1939.2,1939.1,3.53148]
[1688171873814,0.30945,1939.3,1939.1,3.53148]
[1688171874311,0.28671635,1939.2,1939.1,3.53147]
[1688171874514,7.02497635,1939.2,1938.8,9.18341]
[1688171874715,3.252,1939.1,1938.8,9.18341]
[1688171874908,0.59620635,1939.0,1938.8,4.15051]
[1688171875212,0.59620635,1939.0,1938.9,0.07233993]
[1688171875410,0.59620635,1939.0,1938.9,0.30951]
[1688171875813,0.59620635,1939.0,1938.9,0.37219416]
[1688171876111,3.80400635,1939.0,1938.9,0.37219416]
[1688171877816,7.05600635,1939.0,1938.9,0.06268416]
[1688171878116,7.05600635,1939.0,1938.7,5.51434]
[1688171878117,7.15800635,1939.0,1938.7,5.51434]
[1688171878315,0.30952,1938.8,1938.7,5.51434]
[1688171878615,0.59623635,1938.8,1938.7,5.51434]
[1688171880206,0.30952,1938.8,1938.7,5.6246978]
[1688171880807,0.59623635,1938.8,1938.7,5.6246978]
[1688171881622,0.30952,1938.8,1938.7,5.6246978]
[1688171882720,4.8547,1938.9,1938.7,8.8486978]
[1688171882916,4.8547,1938.9,1938.8,3.252]
[1688171883112,4.8547,1938.9,1938.8,3.56152]
[1688171883311,5.06517388,1939.0,1938.8,3.75082717]
[1688171883312,1.85737388,1939.0,1938.8,3.75082717]
[1688171883612,3.97867594,1939.1,1938.8,3.75082717]
[1688171883815,3.56151,1939.1,1938.8,3.75082717]
[1688171884017,0.92842,1939.2,1939.0,3.246]
[1688171884218,9.07206,1939.3,1939.1,3.56148]
[1688171884413,9.07206,1939.3,1939.2,3.222]
[1688171884718,9.07206,1939.3,1939.2,3.53146]
[1688171885113,3.98156,1939.3,1939.2,3.53146]
[1688171885515,4.26827635,1939.3,1939.2,3.53146]
[1688171885718,4.26827635,1939.3,1939.2,3.222]
[1688171886824,7.52027635,1939.3,1939.1,0.30948]
[1688171887723,7.52027635,1939.3,1939.0,8.9252]
[1688171888422,8.44907023,1939.3,1939.0,8.9252]
[1688171889621,7.52027635,1939.3,1939.0,8.9252]
[1688171890921,7.23356,1939.3,1939.0,8.9252]
[1688171892022,7.23356,1939.3,1939.0,5.7012]
[1688171892218,3.98156,1939.3,1939.2,0.30946]
[1688171892418,4.26827635,1939.3,1939.2,0.30946]
[1688171895623,6.37949189,1939.4,1939.2,3.53346]
[1688171896013,0.71799801,1939.4,1939.2,3.63646]
[1688171898326,0.71799801,1939.4,1939.3,0.103]
[1688171898528,5.87717415,1939.6,1939.3,3.63444]
[1688171898827,5.87717415,1939.6,1939.5,3.53341]
[1688171899024,0.78137415,1939.6,1939.5,3.53341]
[1688171902828,0.78137415,1939.6,1939.5,3.63641]
[1688171902829,0.00773415,1939.6,1939.5,3.63641]
[1688171910937,0.00773415,1939.6,1939.5,4.05411473]
[1688171911138,0.6038505,1939.6,1939.5,4.05411473]
[1688171911340,0.6038505,1939.6,1939.5,3.64170473]
[1688171911541,0.68576951,1939.6,1939.5,3.66970473]
[1688171911748,0.68576951,1939.6,1939.5,3.252]
[1688171912045,3.93776951,1939.6,1939.4,3.25973375]
[1688171912344,0.87689412,1939.5,1939.4,3.25973375]
[1688171913547,0.87689412,1939.5,1939.4,3.68019342]
[1688171913845,0.87689412,1939.5,1939.4,3.98962342]
[1688171915249,7.43869412,1939.5,1939.4,0.00773375]
[1688171916346,3.51721,1939.5,1939.4,3.54116375]
[1688171916844,3.2078,1939.5,1939.4,3.54116375]
[1688171917050,0.78127415,1939.6,1939.4,3.54116375]
[1688171917649,0.07254111,1939.5,1939.4,3.54116375]
[1688171918050,0.78127415,1939.6,1939.4,3.53916375]
[1688171918238,0.59612635,1939.5,1939.4,0.31716375]
[1688171918441,0.66870728,1939.5,1939.4,3.54116375]
[1688171918650,0.59612635,1939.5,1939.4,3.54116375]
[1688171919751,0.30941,1939.5,1939.4,3.54116375]
[1688171924055,0.00773415,1939.6,1939.4,3.54116375]
[1688171924355,0.00773415,1939.6,1939.5,3.56141]
[1688171926956,11.58135475,1940.0,1939.5,3.56141]
[1688171926957,13.809,1940.8,1940.2,0.103]
[1688171927156,1e-08,1941.1,1940.7,6.601]
[1688171927354,1e-08,1941.1,1941.0,3.224]
[1688171927555,3.51692,1941.4,1941.1,3.252]
[1688171927848,3.21552698,1941.4,1941.3,3.55514]
[1688171928057,0.00772698,1941.4,1941.3,3.55514]
[1688171928451,8.1343,1941.6,1941.3,3.55514]
[1688171928647,8.1343,1941.6,1941.5,3.55511]
[1688171928861,3.2078,1941.6,1941.5,3.55511]
[1688171929751,3.49451635,1941.6,1941.5,3.55511]
[1688171930364,3.2078,1941.6,1941.5,3.55511]
[1688171930561,0.00772579,1941.7,1941.5,3.55511]
[1688171930864,0.00772579,1941.7,1941.6,5.3591]
[1688171931249,0.00772579,1941.7,1941.6,8.5669]
[1688171931453,0.66109779,1942.0,1941.9,0.30905]
[1688171931650,0.66109779,1942.0,1941.9,5.32814501]
[1688171931651,1.5978881,1942.0,1941.9,5.32814501]
[1688171931854,1.62021175,1942.0,1941.9,5.32814501]
[1688171932055,0.102,1941.9,1941.8,5.05]
[1688171932266,8.92728412,1941.9,1941.5,0.77277]
[1688171932461,5.039,1941.7,1941.6,0.30909]
[1688171932661,1.16328047,1941.7,1941.6,0.30909]
[1688171932856,1.74296645,1941.7,1941.6,0.30909]
[1688171933057,0.88876598,1941.7,1941.6,0.30909]
[1688171934056,0.88876598,1941.7,1941.6,5.35909]
[1688171934560,0.57968598,1941.7,1941.6,5.35909]
[1688171934859,0.78040519,1941.9,1941.6,5.35909]
[1688171935161,0.78040519,1941.9,1941.8,5.35907]
[1688171935659,1.16912154,1941.9,1941.8,5.35907]
[1688171935864,1.16912154,1941.9,1941.6,5.05]
[1688171936162,0.3091,1941.6,1941.4,5.78774]
[1688171937161,3.51691,1941.5,1941.4,5.78774]
[1688171938270,4.37111047,1941.5,1941.3,0.30912]
[1688171938966,4.37111047,1941.5,1941.2,6.08051]
[1688171939266,0.51382713,1941.4,1941.3,0.30916]
[1688171939459,0.51382713,1941.4,1941.3,5.35916]
[1688171941266,0.82296713,1941.4,1941.3,5.35916]
[1688171941655,0.82296713,1941.4,1941.2,6.08051]
[1688171941656,1.10968348,1941.4,1941.2,6.08051]
[1688171941865,3.51696,1941.3,1941.2,6.08051]
[1688171942061,3.51696,1941.3,1941.2,5.05]
[1688171942368,4.00291006,1941.3,1941.2,5.35917]
[1688171943164,4.00291006,1941.3,1941.2,5.05]
[1688171943364,4.00291006,1941.3,1941.2,5.78141986]
[1688171943567,3.51696,1941.3,1941.2,5.78140986]
[1688171943766,3.51696,1941.3,1941.2,5.35916]
[1688171946574,4.00308483,1941.3,1941.2,5.35916]
[1688171949764,3.51696,1941.3,1941.2,5.35916]
[1688171950870,4.00325991,1941.3,1941.2,5.35916]
[1688171951470,0.102,1941.2,1941.1,0.42706181]
[1688171951664,5.74788635,1941.2,1941.1,0.00772698]
[1688171951872,6.21065499,1941.2,1941.1,0.00772698]
[1688171955772,6.10865499,1941.2,1941.1,0.00772698]
[1688171957177,6.21065499,1941.2,1941.1,0.00772698]
[1688171960779,6.10865499,1941.2,1941.1,0.00772698]
[1688171960982,1.05865499,1941.2,1941.1,0.31689698]
[1688171961380,1.05865499,1941.2,1941.1,0.31688698]
[1688171961575,1.05865499,1941.2,1941.1,0.00772698]
[1688171962685,0.77193864,1941.2,1941.1,0.31688698]
[1688171962880,0.77193864,1941.2,1941.1,0.31686698]
[1688171963091,0.46276864,1941.2,1941.1,5.36686698]
[1688171963788,1.05860499,1941.2,1941.1,5.05772698]
[1688171963986,0.77188864,1941.2,1941.1,5.36686698]
[1688171967587,0.46276864,1941.2,1941.1,5.36686698]
[1688171968388,0.30907,1941.7,1941.2,5.007]
[1688171968585,0.30907,1941.7,1941.6,5.35905]
[1688171968785,0.85205732,1941.6,1941.3,5.82274]
[1688171968986,0.30906,1941.6,1941.4,0.7727]
[1688171969190,0.59577635,1941.6,1941.4,0.7727]
[1688171969387,0.54814563,1941.5,1941.4,0.8757]
[1688171969592,0.00772519,1941.9,1941.5,0.103]
[1688171969593,0.31675519,1941.9,1941.5,0.103]
[1688171969897,0.31675519,1941.9,1941.8,5.34101]
[1688171969898,0.00772519,1941.9,1941.8,5.34101]
[1688171971191,0.00772519,1941.9,1941.8,13.57281]
[1688171971391,0.15,1942.0,1941.8,13.57281]
[1688171971593,0.15,1942.0,1941.9,5.359]
[1688171971894,0.4130367,1942.1,1941.9,5.359]
[1688171972092,0.30894,1942.3,1942.0,5.015]
[1688171972395,0.7217471,1942.3,1942.2,5.05]
[1688171972588,0.7217471,1942.3,1942.2,5.35895]
[1688171972589,0.314097,1942.3,1942.2,5.35895]
[1688171972790,0.005157,1942.3,1942.2,5.46195]
[1688171973596,0.59023682,1942.3,1942.2,5.46195]
[1688171973791,0.89917682,1942.3,1942.2,5.46195]
[1688171974193,0.59023682,1942.3,1942.2,5.35895]
[1688171974899,0.59023682,1942.3,1942.2,5.46195]
[1688171975100,0.89917682,1942.3,1942.2,5.46195]
[1688171975300,0.89917682,1942.3,1942.2,5.35895]
[1688171975692,1.18589317,1942.3,1942.2,5.35895]
[1688171975888,0.89917682,1942.3,1942.2,5.35895]
[1688171976498,0.59023682,1942.3,1942.2,5.35895]
[1688171976701,0.89917682,1942.3,1942.2,5.35895]
[1688171977002,0.89917682,1942.3,1942.2,5.46195]
[1688171977299,0.89917682,1942.3,1942.2,5.35895]
[1688171977703,0.89917682,1942.3,1942.2,4.79215801]
[1688171979001,4.1346,1942.6,1942.3,5.003]
[1688171979195,4.1346,1942.6,1942.5,5.05]
[1688171979396,0.9268,1942.6,1942.5,5.3589]
[1688171979594,1.21351635,1942.6,1942.5,5.3589]
[1688171979904,4.42131635,1942.6,1942.5,5.3589]
[1688171980696,4.42131635,1942.6,1942.4,3.88214746]
[1688171980900,5.61748412,1942.5,1942.2,5.05]
[1688171981199,3.80343635,1942.4,1942.2,5.05]
[1688171981401,0.56748412,1942.3,1942.2,5.05]
[1688171981599,0.87642412,1942.3,1942.2,5.05]
[1688171983205,0.97842412,1942.3,1942.2,5.05]
[1688171983397,0.97842412,1942.3,1942.1,0.007723]
[1688171983602,3.49451635,1942.2,1942.1,0.007723]
[1688171983902,3.80346635,1942.2,1942.1,0.007723]
[1688171984205,3.90546635,1942.2,1942.1,0.007723]
[1688171986812,4.32141416,1942.2,1942.1,0.007723]
[1688171990813,4.21941416,1942.2,1942.1,0.007723]
[1688171991117,3.93269781,1942.2,1942.1,0.007723]
[1688171991305,3.93269781,1942.2,1942.1,5.331693]
[1688171992316,4.34675768,1942.2,1942.1,5.331693]
[1688171993215,1.13895768,1942.2,1942.1,5.331693]
[1688171997512,0.41594781,1942.2,1942.1,5.331693]
[1688171997717,0.31664049,1942.4,1942.1,5.331693]
[1688171997914,0.73406393,1942.4,1942.3,5.022]
[1688171998115,0.31664049,1942.4,1942.3,5.33094]
[1688171999309,0.7799331,1942.4,1942.3,5.33094]
[1688172000314,0.7799331,1942.4,1942.3,4.79784601]
[1688172001307,0.7799331,1942.4,1942.3,4.90084601]
[1688172001513,0.4710131,1942.4,1942.3,4.90084601]
[1688172008319,0.4710131,1942.4,1942.3,5.21073698]
[1688172008523,0.7799331,1942.4,1942.3,5.21073698]
[1688172009418,0.4710131,1942.4,1942.3,5.31373698]
[1688172010615,1.06664945,1942.4,1942.3,5.21073698]
[1688172010920,1.06664945,1942.4,1942.3,0.30894]
[1688172011613,1.06664945,1942.4,1942.1,0.007723]
[1688172011614,0.102,1942.3,1942.1,0.007723]
[1688172011818,9.42095047,1942.2,1942.1,0.007723]
[1688172012014,9.89083956,1942.2,1942.1,0.007723]
[1688172012722,9.98183956,1942.2,1942.1,0.007723]
[1688172013024,9.98183956,1942.2,1941.7,5.80456]
[1688172013224,3.2078,1941.9,1941.7,5.80456]
[1688172013523,1.25262307,1941.8,1941.7,5.80456]
[1688172014318,0.68513895,1941.8,1941.7,5.80456]
[1688172016024,0.9718553,1941.8,1941.7,0.30904]
[1688172016526,0.37611895,1941.8,1941.7,5.35904]
[1688172017026,0.36230941,1941.8,1941.7,5.35904]
[1688172017424,0.30899,1942.0,1941.7,5.35904]
[1688172017624,0.30899,1942.0,1941.9,5.022]
[1688172017817,0.30899,1942.0,1941.9,5.331]
[1688172018322,0.77246,1942.1,1941.9,5.331]
[1688172019521,1.05917635,1942.1,1941.9,5.331]
[1688172021332,0.77246,1942.1,1941.9,5.331]
[1688172021523,0.71773468,1942.2,1942.0,5.032]
[1688172021724,0.71773468,1942.2,1942.1,5.33098]
[1688172022022,1.00445103,1942.2,1942.1,5.34098]
[1688172022430,0.71773468,1942.2,1942.1,5.34098]
[1688172022627,1.00445103,1942.2,1942.1,5.34098]
[1688172023522,1.00445103,1942.2,1942.1,5.032]
[1688172024124,1.10645103,1942.2,1942.0,0.30899]
[1688172024424,3.87728412,1942.1,1941.9,5.05]
[1688172024625,0.69770635,1942.0,1941.9,0.30901]
[1688172025528,0.69770635,1942.0,1941.8,0.77252]
[1688172025723,4.08429412,1941.9,1941.8,0.77252]
[1688172027434,9.20829412,1941.9,1941.6,0.00772499]
[1688172027729,3.51684,1941.7,1941.6,0.31678499]
[1688172028224,4.18632412,1941.7,1941.6,0.00772499]
[1688172028426,4.18632412,1941.7,1941.6,0.31678499]
[1688172030732,4.52568651,1941.7,1941.6,0.31678499]
[1688172033327,4.52568651,1941.7,1941.6,0.00772499]
[1688172033528,9.57568651,1941.7,1941.6,0.31678499]
[1688172034930,9.57568651,1941.7,1941.6,0.00772499]
[1688172035133,9.57568651,1941.7,1941.4,1.17492761]
[1688172035134,9.57568651,1941.7,1941.4,0.77263]
[1688172035336,5.022,1941.5,1941.4,0.77263]
[1688172035636,6.19105543,1941.5,1941.4,0.77263]
[1688172036136,0.29250131,1941.5,1941.4,0.77263]
[1688172036628,8.2578,1941.7,1941.4,0.77263]
[1688172036834,8.2578,1941.7,1941.5,5.022]
[1688172036835,0.32052291,1941.6,1941.5,5.022]
[1688172037143,3.6165342,1941.7,1941.5,5.33107]
[1688172037328,0.33009406,1941.6,1941.5,5.33107]
[1688172037828,0.31613704,1941.6,1941.5,5.33107]
[1688172038330,0.31615787,1941.6,1941.5,5.33107]
[1688172038830,0.31617851,1941.6,1941.5,5.33107]
[1688172039230,0.7177742,1941.7,1941.5,5.33107]
[1688172039430,0.31619954,1941.6,1941.5,5.33107]
[1688172039631,0.4087342,1941.7,1941.5,8.64187]
[1688172039832,0.4087342,1941.7,1941.6,5.05]
[1688172040037,5.2037,1941.9,1941.6,5.35906]
[1688172040337,3.2078,1942.0,1941.9,0.30901]
[1688172040632,3.80350635,1942.0,1941.9,0.30901]
[1688172040836,3.49451635,1942.0,1941.9,0.30901]
[1688172041337,0.70300556,1942.0,1941.9,0.30901]
[1688172042232,0.41628921,1942.0,1941.9,0.30901]
[1688172042442,0.70300556,1942.0,1941.9,0.30901]
[1688172042639,0.28671635,1942.0,1941.9,0.30901]
[1688172043738,0.59570635,1942.0,1941.9,0.30901]
[1688172044234,1.34164258,1942.1,1941.9,0.30901]
[1688172044438,0.41459258,1942.1,1942.0,5.032]
[1688172044627,0.41459258,1942.1,1942.0,5.34099]
[1688172044831,9.00971,1942.2,1942.0,5.34099]
[1688172045131,9.29642635,1942.2,1942.0,0.30899]
[1688172045638,0.41662454,1942.1,1942.0,0.30899]
[1688172045940,9.70827054,1942.2,1942.0,0.30899]
[1688172046238,0.41664491,1942.1,1942.0,0.30899]
[1688172046638,9.70827054,1942.2,1942.0,0.30899]
[1688172046843,0.41667607,1942.1,1942.0,0.30899]
[1688172047133,9.70827054,1942.2,1942.0,0.30899]
[1688172047438,0.41669774,1942.1,1942.0,0.30899]
[1688172047638,0.30898,1942.1,1942.0,0.30899]
[1688172047936,0.72569839,1942.1,1942.0,0.30899]
[1688172049633,1.29318251,1942.1,1941.9,5.022]
[1688172049840,3.49451635,1942.0,1941.9,0.309]
[1688172050031,3.80350635,1942.0,1941.9,0.309]
[1688172050236,4.25463246,1942.0,1941.9,0.309]
[1688172050941,7.50063246,1942.0,1941.9,0.309]
[1688172051139,0.45112611,1942.0,1941.9,3.636]
[1688172051341,3.92860419,1942.2,1941.9,3.636]
[1688172051545,3.92860419,1942.2,1942.1,3.224]
[1688172051738,4.21532054,1942.2,1942.1,3.53298]
[1688172052444,3.90636054,1942.2,1942.1,3.53298]
[1688172053141,4.21532054,1942.2,1942.1,3.53298]
[1688172054241,14.72809358,1942.6,1942.1,3.53298]
[1688172054242,0.77206,1943.2,1942.4,5.0]
[1688172054440,0.77201,1943.3,1943.1,3.224]
[1688172054636,0.77201,1943.3,1943.2,0.3088]
[1688172055039,4.01704,1943.5,1943.2,0.3088]
[1688172055347,4.7947,1943.3,1943.2,0.3088]
[1688172055646,4.7947,1943.3,1943.2,3.5428]
[1688172055837,0.00771903,1943.4,1943.2,3.5428]
[1688172056039,0.00771903,1943.4,1943.3,3.5388]
[1688172056240,0.60322538,1943.4,1943.2,3.246]
[1688172056448,0.60322538,1943.4,1943.2,3.55482]
[1688172056744,1.1707095,1943.4,1943.2,3.55482]
[1688172057638,0.102,1943.2,1943.1,0.00771903]
[1688172057841,1.26502047,1943.2,1942.8,0.30889]
[1688172058037,6.74767,1942.9,1942.8,0.30889]
[1688172058249,7.03438635,1942.9,1942.8,0.30889]
[1688172058438,7.03438635,1942.9,1942.7,0.77225]
[1688172058640,7.03438635,1942.9,1942.6,4.15671]
[1688172059146,7.03438635,1942.9,1942.6,4.16443101]
[1688172059147,0.56748412,1942.8,1942.6,4.16443101]
[1688172059350,3.51771635,1942.7,1942.6,0.31664101]
[1688172059551,7.03442635,1942.7,1942.6,0.00772101]
[1688172059850,3.82662635,1942.7,1942.6,0.31664101]
[1688172060444,7.03442635,1942.7,1942.6,0.31664101]
[1688172060643,7.65509313,1942.7,1942.6,0.31664101]
[1688172060953,9.22199313,1942.7,1942.6,0.31664101]
[1688172061452,5.72747678,1942.7,1942.6,0.31664101]
[1688172061654,5.41856678,1942.7,1942.6,0.31664101]
[1688172061950,5.70528313,1942.7,1942.6,0.31664101]
[1688172062338,5.41856678,1942.7,1942.6,0.31664101]
[1688172062543,5.70528313,1942.7,1942.6,0.31664101]
[1688172063553,6.01418313,1942.7,1942.6,0.31664101]
[1688172064952,6.01418313,1942.7,1942.6,0.00772101]
[1688172065545,6.01418313,1942.7,1942.6,0.31664101]
[1688172069356,5.41856678,1942.7,1942.6,0.31664101]
[1688172069957,6.01418313,1942.7,1942.6,0.31664101]
[1688172073574,6.01418313,1942.7,1942.6,5.36564101]
[1688172074263,5.72746678,1942.7,1942.6,5.36564101]
[1688172075170,6.01418313,1942.7,1942.6,5.36564101]
[1688172075366,6.01418313,1942.7,1942.6,0.31663101]
[1688172075872,9.22198313,1942.7,1942.6,0.31663101]
[1688172081177,8.91308313,1942.7,1942.6,0.31663101]
[1688172085482,9.22198313,1942.7,1942.6,0.00772101]
[1688172085681,14.27098313,1942.7,1942.6,0.00772101]
[1688172090784,0.56748412,1942.6,1942.3,0.30896]
[1688172090985,3.2078,1942.4,1942.3,0.30896]
[1688172091278,3.51674,1942.4,1942.3,0.30896]
[1688172091488,4.61406632,1942.4,1942.3,0.30896]
[1688172092285,9.65506632,1942.4,1942.3,0.30896]
[1688172094088,14.75916632,1942.4,1942.2,1.19091938]
[1688172094288,0.28671635,1942.3,1942.2,0.41853938]
[1688172094488,0.59567635,1942.3,1942.2,0.0077226]
[1688172094691,1.11033411,1942.3,1942.2,0.0077226]
[1688172095187,6.15933411,1942.3,1942.2,0.0077226]
[1688172097088,6.26133411,1942.3,1942.0,0.77251]
[1688172097287,3.2078,1942.1,1942.0,0.77251]
[1688172097484,3.80350635,1942.1,1941.9,0.92698]
[1688172097687,0.56748412,1942.0,1941.9,0.92698]
[1688172097993,6.49690823,1942.0,1941.9,0.92698]
[1688172099698,6.49690823,1942.0,1941.9,1.34823465]
[1688172101694,11.54590823,1942.0,1941.9,1.34823465]
[1688172102587,10.66941411,1942.0,1941.9,1.34823465]
[1688172102793,5.62041411,1942.0,1941.9,1.34823465]
[1688172103394,5.90713046,1942.0,1941.9,1.34823465]
[1688172105799,5.62041411,1942.0,1941.9,1.34823465]
[1688172106396,0.00772419,1942.1,1941.9,9.60503465]
[1688172106597,5.004,1942.7,1942.0,5.024]
[1688172106897,0.51470277,1942.6,1942.4,0.30894]
[1688172108292,0.51470277,1942.6,1942.5,5.148]
[1688172108492,0.51470277,1942.6,1942.5,5.45693]
[1688172113195,0.40915671,1942.8,1942.5,5.45693]
[1688172113400,5.07068,1943.5,1942.7,8.2568]
[1688172113598,0.5375893,1943.4,1943.2,5.049]